fUSD/lending_fUSD_20241227
["ID","MTS","AMOUNT","RATE_DAILY","PERIOD"]
[346777190,1735278638699,-573.41,0.00013067,2]
[346777192,1735278638709,-500.0,0.00013067,2]
[346777194,1735278638719,-849.05,0.00013067,2]
[346777196,1735278638730,-1219.4,0.00013067,2]
[346777198,1735278638739,-1574.87,0.00013067,2]
[346777200,1735278638748,-500.0,0.00013067,2]
[346777202,1735278638758,-1393.59,0.00013067,2]
[346777204,1735278638767,-512.89,0.00013067,2]
[346777206,1735278638775,-500.0,0.00013067,2]
[346777208,1735278638785,-500.0,0.00013067,2]
[346777210,1735278638794,-500.0,0.00013067,2]
[346777212,1735278638803,-500.0,0.00013067,2]
[346777214,1735278638813,-500.0,0.00013067,2]
[346777216,1735278638822,-500.0,0.00013067,2]
[346777218,1735278638831,-500.0,0.00013067,2]
[346777220,1735278638841,-500.0,0.00013067,2]
[346777222,1735278638850,-624.02,0.00013067,2]
[346777224,1735278638859,-409.08997136,0.00013067,2]
[346777232,1735278640071,-396.10002864,0.00013067,2]
[346777233,1735278640080,-1921.76,0.00013067,2]
[346777234,1735278640090,-644.34,0.00013067,2]
[346777235,1735278640101,-915.39,0.00013067,2]
[346777236,1735278640110,-500.0,0.00013067,2]
[346777237,1735278640119,-1067.04,0.00013067,2]
[346777238,1735278640130,-500.0,0.00013067,2]
[346777239,1735278640142,-500.0,0.00013067,2]
[346777240,1735278640151,-500.0,0.00013067,2]
[346777241,1735278640160,-1456.7,0.00013067,2]
[346777242,1735278640170,-500.0,0.00013067,2]
[346777243,1735278640181,-1500.4,0.00013067,2]
[346777244,1735278640190,-500.0,0.00013067,2]
[346777245,1735278640199,-637.69,0.00013067,2]
[346777246,1735278640209,-512.12,0.00013067,2]
[346777247,1735278640218,-640.51,0.00013067,2]
[346777248,1735278640227,-500.0,0.00013067,2]
[346777249,1735278640237,-709.56,0.00013067,2]
[346777250,1735278640247,-1911.63,0.00013067,2]
[346777251,1735278640256,-500.0,0.00013067,2]
[346777252,1735278640265,-776.42,0.00013067,2]
[346777253,1735278640274,-500.0,0.00013067,2]
[346777254,1735278640284,-550.42,0.00013067,2]
[346777255,1735278640293,-500.0,0.00013067,2]
[346777256,1735278640302,-500.0,0.00013067,2]
[346777257,1735278640311,-500.0,0.00013067,2]
[346777258,1735278640320,-571.96,0.00013067,2]
[346777259,1735278640329,-500.0,0.00013067,2]
[346777260,1735278640339,-500.0,0.00013067,2]
[346777261,1735278640348,-500.0,0.00013067,2]
[346777262,1735278640358,-23.44023776,0.00013067,2]
[346777263,1735278640371,-630.00976224,0.00013067,2]
[346777264,1735278640381,-500.0,0.00013067,2]
[346777265,1735278640391,-500.0,0.00013067,2]
[346777266,1735278640400,-75.54851096,0.00013067,2]
[346777267,1735278640443,-289.15000193,0.00013067,2]
[346777268,1735278640459,-224.35148711,0.00013067,2]
[346777269,1735278640469,-75.46854799,0.00013067,2]
[346777274,1735278643001,-502.17145201,0.00013067,2]
[346777275,1735278643011,-462.85237222,0.00013067,2]
[346777352,1735278646051,-292.80640999,0.00013067,2]
[346777353,1735278646903,1429.85,0.00011973,2]
[346777354,1735278647320,1429.85,0.00012247,2]
[346777355,1735278648013,1429.85,0.00012521,2]
[346777356,1735278648880,1429.85,0.00012795,2]
[346777357,1735278649054,1000.0,0.00011974,2]
[346777358,1735278649996,1000.0,0.00012248,2]
[346777359,1735278650681,1000.0,0.00012522,2]
[346777360,1735278651651,1000.0,0.00012796,2]
[346777361,1735278652747,150.0,0.00012258,2]
[346777362,1735278656412,500.0,0.00011973,2]
[346777363,1735278657622,500.0,0.00012247,2]
[346777364,1735278658482,500.0,0.00012521,2]
[346777365,1735278659534,500.0,0.00012795,2]
[346777366,1735278664643,1102.0,0.00012258,2]
[346777368,1735278671342,1271.64,0.00011974,2]
[346777369,1735278671489,1271.64,0.00012248,2]
[346777370,1735278672014,1271.64,0.00012522,2]
[346777371,1735278672863,1271.64,0.00012796,2]
[346777372,1735278674126,2080.54,0.00011974,2]
[346777373,1735278674849,2080.54,0.00012248,2]
[346777374,1735278675696,2080.54,0.00012522,2]
[346777375,1735278676395,2080.54,0.00012796,2]
[346777376,1735278678332,1009.66,0.00011974,2]
[346777377,1735278679900,1009.66,0.00012248,2]
[346777378,1735278680924,1009.66,0.00012522,2]
[346777379,1735278682088,1009.66,0.00012796,2]
[346777380,1735278686916,2631.96,0.00011973,2]
[346777381,1735278687484,2631.96,0.00012247,2]
[346777382,1735278688055,2631.96,0.00012521,2]
[346777383,1735278688612,2631.96,0.00012795,2]
[346777384,1735278689585,551.74,0.00011973,2]
[346777385,1735278692444,551.74,0.00012247,2]
[346777386,1735278693230,551.74,0.00012521,2]
[346777387,1735278693985,551.74,0.00012795,2]
[346777388,1735278695094,150.0,0.00012258,2]
[346777389,1735278701745,150.0,0.00012258,2]
[346777390,1735278701899,5061.29,0.00011974,2]
[346777391,1735278702864,5061.29,0.00012248,2]
[346777392,1735278704139,5061.29,0.00012522,2]
[346777393,1735278704434,642.72,0.00011974,2]
[346777394,1735278704755,5061.29,0.00012796,2]
[346777395,1735278705000,642.72,0.00012248,2]
[346777396,1735278705743,642.72,0.00012522,2]
[346777397,1735278706000,153.0,0.00012155,2]
[346777398,1735278706186,642.72,0.00012796,2]
[346777399,1735278714604,153.0,0.00012154,2]
[346777400,1735278715524,611.41,0.00011973,2]
[346777401,1735278716017,611.41,0.00012247,2]
[346777402,1735278716648,611.41,0.00012521,2]
[346777403,1735278717237,611.41,0.00012795,2]
[346777404,1735278729941,500.0,0.00011974,2]
[346777405,1735278730864,500.0,0.00012248,2]
[346777406,1735278731827,500.0,0.00012522,2]
[346777407,1735278732575,1748.83,0.00011974,2]
[346777408,1735278732681,500.0,0.00012796,2]
[346777409,1735278733215,152.66,0.00010137,2]
[346777410,1735278733302,1748.83,0.00012248,2]
[346777411,1735278733842,1748.83,0.00012522,2]
[346777412,1735278734987,1748.83,0.00012796,2]
[346777413,1735278743837,1077.95,0.00011973,2]
[346777414,1735278745007,1077.95,0.00012247,2]
[346777415,1735278745266,1077.95,0.00012521,2]
[346777416,1735278745820,1077.95,0.00012795,2]
[346777417,1735278746056,1733.79,0.00011974,2]
[346777418,1735278746502,1733.79,0.00012248,2]
[346777419,1735278747030,1733.79,0.00012522,2]
[346777420,1735278747467,1733.79,0.00012796,2]
[346777421,1735278763224,153.0,0.00012149,2]
[346777422,1735278765276,211.37,0.00012632,2]
[346777423,1735278768268,770.64,0.00011973,2]
[346777424,1735278768687,153.0,0.00012148,2]
[346777425,1735278768798,1186.02,0.00011973,2]
[346777426,1735278768944,770.64,0.00012247,2]
[346777427,1735278769488,1186.02,0.00012247,2]
[346777428,1735278769715,770.64,0.00012521,2]
[346777429,1735278769873,1114.75,0.00011974,2]
[346777430,1735278770132,1186.02,0.00012521,2]
[346777431,1735278770265,770.64,0.00012795,2]
[346777432,1735278770607,1114.75,0.00012248,2]
[346777433,1735278770757,1186.02,0.00012795,2]
[346777434,1735278771263,1114.75,0.00012522,2]
[346777435,1735278772258,1114.75,0.00012796,2]
[346777436,1735278797216,1216.59,0.00011973,2]
[346777437,1735278797531,1216.59,0.00012247,2]
[346777438,1735278798270,1216.59,0.00012521,2]
[346777439,1735278798827,1216.59,0.00012795,2]
[346777440,1735278800932,1457.36,0.00011974,2]
[346777441,1735278801661,1457.36,0.00012248,2]
[346777442,1735278802444,1457.36,0.00012522,2]
[346777443,1735278802965,1457.36,0.00012796,2]
[346777444,1735278804631,755.09,0.00011974,2]
[346777445,1735278805140,755.09,0.00012248,2]
[346777446,1735278805645,755.09,0.00012522,2]
[346777447,1735278806137,755.09,0.00012796,2]
[346777448,1735278811604,500.0,0.00011973,2]
[346777449,1735278812133,500.0,0.00012247,2]
[346777450,1735278812707,500.0,0.00012521,2]
[346777451,1735278813339,500.0,0.00012795,2]
[346777452,1735278816261,204.12519837,0.00012969,2]
[346777453,1735278827245,153.0,0.00012142,2]
[346777454,1735278832287,785.1,0.00011973,2]
[346777455,1735278832886,153.0,0.00012142,2]
[346777456,1735278832958,785.1,0.00012247,2]
[346777457,1735278833562,785.1,0.00012521,2]
[346777458,1735278834219,785.1,0.00012795,2]
[346777459,1735278837212,1910.4,0.00011974,2]
[346777460,1735278837748,1910.4,0.00012248,2]
[346777461,1735278837889,460.341,0.0001242,2]
[346777462,1735278839114,1910.4,0.00012522,2]
[346777463,1735278839199,500.0,0.00011973,2]
[346777464,1735278839717,1910.4,0.00012796,2]
[346777465,1735278839987,500.0,0.00012247,2]
[346777466,1735278840826,500.0,0.00012521,2]
[346777467,1735278841561,500.0,0.00012795,2]
[346777468,1735278860996,1191.93,0.00011973,2]
[346777469,1735278862152,1191.93,0.00012247,2]
[346777470,1735278863074,1191.93,0.00012521,2]
[346777471,1735278864051,1191.93,0.00012795,2]
[346777472,1735278865527,150.0,0.00012969,2]
[346777473,1735278865604,150.0,0.00012807,2]
[346777474,1735278875003,500.0,0.00011974,2]
[346777475,1735278875692,500.0,0.00012248,2]
[346777476,1735278876704,500.0,0.00012522,2]
[346777477,1735278877507,500.0,0.00012796,2]
[346777478,1735278882713,153.0,0.00012137,2]
[346777479,1735278887545,153.0,0.00012136,2]
[346777480,1735278887780,1861.37,0.00011973,2]
[346777481,1735278888468,1861.37,0.00012247,2]
[346777482,1735278890299,1861.37,0.00012521,2]
[346777483,1735278890819,1861.37,0.00012795,2]
[346777484,1735278894187,898.29,0.00011973,2]
[346777485,1735278894766,1000.0,0.00011974,2]
[346777486,1735278895133,898.29,0.00012247,2]
[346777487,1735278895580,1000.0,0.00012248,2]
[346777488,1735278895800,898.29,0.00012521,2]
[346777489,1735278896691,1000.0,0.00012522,2]
[346777490,1735278897172,898.29,0.00012795,2]
[346777491,1735278897308,1000.0,0.00012796,2]
[346777492,1735278909326,841.38,0.00011974,2]
[346777493,1735278909584,841.38,0.00012248,2]
[346777494,1735278910020,841.38,0.00012522,2]
[346777495,1735278910270,841.38,0.00012796,2]
[346777496,1735278910612,2169.95,0.00011973,2]
[346777497,1735278910889,2169.95,0.00012247,2]
[346777498,1735278911169,2169.95,0.00012521,2]
[346777499,1735278911228,988.35,0.00011973,2]
[346777500,1735278911436,988.35,0.00012247,2]
[346777501,1735278911510,2169.95,0.00012795,2]
[346777502,1735278911785,988.35,0.00012521,2]
[346777503,1735278912354,988.35,0.00012795,2]
[346777504,1735278918267,535.6,0.00011974,2]
[346777505,1735278918792,535.6,0.00012248,2]
[346777506,1735278919062,535.6,0.00012522,2]
[346777507,1735278919493,535.6,0.00012796,2]
[346777508,1735278919559,2069.73,0.00011973,2]
[346777509,1735278919855,2069.73,0.00012247,2]
[346777510,1735278920095,2069.73,0.00012521,2]
[346777511,1735278920389,1013.83,0.00011973,2]
[346777512,1735278920503,2069.73,0.00012795,2]
[346777513,1735278920693,1013.83,0.00012247,2]
[346777514,1735278921204,1013.83,0.00012521,2]
[346777515,1735278921975,1013.83,0.00012795,2]
[346777516,1735278925357,150.0,0.00012878,2]
[346777517,1735278925450,150.0,0.00012918,2]
[346777518,1735278925599,150.0,0.00012929,2]
[346777519,1735278925664,166.28578014,0.00012871,2]
[346777520,1735278928282,237.066,0.00012258,2]
[346777530,1735278946885,153.0,0.0001213,2]
[346777531,1735278947898,1833.9492,0.0001297,2]
[346777532,1735278949112,11378.85,0.00011973,2]
[346777533,1735278949668,11378.85,0.00012247,2]
[346777534,1735278950546,11378.85,0.00012521,2]
[346777535,1735278951140,11378.85,0.00012795,2]
[346777536,1735278959417,654.25,0.00011973,2]
[346777537,1735278960039,654.25,0.00012247,2]
[346777538,1735278960480,1444.82,0.00011974,2]
[346777539,1735278960868,654.25,0.00012521,2]
[346777540,1735278961015,1444.82,0.00012248,2]
[346777541,1735278962474,1444.82,0.00012522,2]
[346777542,1735278962537,654.25,0.00012795,2]
[346777543,1735278963176,1444.82,0.00012796,2]
[346777544,1735278982359,1104.06039593,0.0001254,2]
[346777545,1735278990466,1551.15,0.00011973,2]
[346777546,1735278991081,1551.15,0.00012247,2]
[346777547,1735278991807,1551.15,0.00012521,2]
[346777548,1735278992409,1551.15,0.00012795,2]
[346777549,1735278998308,1008.82821876,0.00012539,2]
[346777550,1735279007832,1164.4,0.00011973,2]
[346777551,1735279008430,1164.4,0.00012247,2]
[346777552,1735279008982,1164.4,0.00012521,2]
[346777553,1735279009656,1164.4,0.00012795,2]
[346777554,1735279014024,1808.3,0.00011973,2]
[346777555,1735279015777,1808.3,0.00012247,2]
[346777556,1735279016481,1808.3,0.00012521,2]
[346777557,1735279017008,1808.3,0.00012795,2]
[346777558,1735279027060,1214.46,0.00011974,2]
[346777559,1735279027747,1214.46,0.00012248,2]
[346777560,1735279028779,1214.46,0.00012522,2]
[346777561,1735279029283,1214.46,0.00012796,2]
[346777562,1735279035011,594.23,0.00011973,2]
[346777563,1735279035859,594.23,0.00012247,2]
[346777564,1735279036448,594.23,0.00012521,2]
[346777565,1735279037035,594.23,0.00012795,2]
[346777566,1735279042119,1724.78,0.00011973,2]
[346777567,1735279044057,1724.78,0.00012247,2]
[346777568,1735279044565,1724.78,0.00012521,2]
[346777569,1735279045123,1724.78,0.00012795,2]
[346777570,1735279053356,1006.12287306,0.00012539,2]
[346777571,1735279072620,9482.38,0.00011973,2]
[346777572,1735279073192,9482.38,0.00012247,2]
[346777573,1735279073720,9482.38,0.00012521,2]
[346777574,1735279074812,9482.38,0.00012795,2]
[346777575,1735279078165,1092.0325197,0.00012539,2]
[346777576,1735279099890,500.0,0.00011973,2]
[346777577,1735279100472,500.0,0.00012247,2]
[346777578,1735279101046,500.0,0.00012521,2]
[346777579,1735279101686,500.0,0.00012795,2]
[346777580,1735279129243,1074.25113146,0.00012539,2]
[346777581,1735279132223,970.34,0.00011973,2]
[346777582,1735279132743,970.34,0.00012247,2]
[346777583,1735279133733,970.34,0.00012521,2]
[346777584,1735279134001,970.34,0.00012795,2]
[346777585,1735279156313,1059.7,0.00011973,2]
[346777586,1735279157208,1059.7,0.00012247,2]
[346777587,1735279157907,1059.7,0.00012521,2]
[346777588,1735279158481,1059.7,0.00012795,2]
[346777589,1735279161432,500.0,0.00011973,2]
[346777590,1735279162049,500.0,0.00012247,2]
[346777591,1735279162832,500.0,0.00012521,2]
[346777592,1735279163086,500.0,0.00012795,2]
[346777594,1735279183229,4217.75,0.00011973,2]
[346777595,1735279185166,4217.75,0.00012247,2]
[346777596,1735279185971,4217.75,0.00012521,2]
[346777597,1735279186668,4217.75,0.00012795,2]
[346777598,1735279209913,500.0,0.00011973,2]
[346777599,1735279210700,500.0,0.00012247,2]
[346777600,1735279211150,500.0,0.00012521,2]
[346777601,1735279211737,500.0,0.00012795,2]
[346777602,1735279213675,2012.0,0.00012258,2]
[346777603,1735279219579,3889.0,0.00012258,2]
[346777604,1735279222259,500.0,0.00011973,2]
[346777605,1735279223058,500.0,0.00012247,2]
[346777606,1735279223703,500.0,0.00012521,2]
[346777607,1735279224173,500.0,0.00012795,2]
[346777608,1735279225993,635.0,0.00012258,2]
[346777609,1735279231610,1266.0,0.00012304,2]
[346777610,1735279237098,150.0,0.00012304,2]
[346777615,1735279250671,928.96,0.00011973,2]
[346777616,1735279251386,928.96,0.00012247,2]
[346777617,1735279251933,928.96,0.00012521,2]
[346777618,1735279252493,928.96,0.00012795,2]
[346777619,1735279253110,1833.9492,0.0001296,2]
[346777620,1735279253268,150.0,0.00012304,2]
[346777621,1735279259363,565.0,0.00012304,2]
[346777622,1735279264858,1458.42,0.00011973,2]
[346777623,1735279264965,633.0,0.00012304,2]
[346777624,1735279266178,1458.42,0.00012247,2]
[346777625,1735279266858,1458.42,0.00012521,2]
[346777626,1735279267527,1458.42,0.00012795,2]
[346777627,1735279267648,1500.0,0.00012844,2]
[346777628,1735279281190,1459.25884229,0.00012464,2]
[346777629,1735279281854,1459.25884229,0.00012439,2]
[346777630,1735279281953,1459.25884229,0.00012434,2]
[346777631,1735279282054,1459.25884229,0.00012435,2]
[346777632,1735279282293,1459.25884229,0.00012465,2]
[346777633,1735279282652,1459.25884229,0.00012466,2]
[346777634,1735279282759,886.4,0.00011973,2]
[346777635,1735279283558,886.4,0.00012247,2]
[346777636,1735279284030,886.4,0.00012521,2]
[346777637,1735279284876,886.4,0.00012795,2]
[346777638,1735279286947,250.0,0.00012403,2]
[346777639,1735279293526,7856.22,0.00011973,2]
[346777640,1735279294046,7856.22,0.00012247,2]
[346777641,1735279294505,7856.22,0.00012521,2]
[346777642,1735279295266,7856.22,0.00012795,2]
[346777643,1735279297528,1900.0,0.00012321,2]
[346777644,1735279307481,1165.56924156,0.00011989,2]
[346777645,1735279307789,1165.56924156,0.00011989,2]
[346777647,1735279308108,1165.56924156,0.00011989,2]
[346777648,1735279308422,1165.56924156,0.00011989,2]
[346777649,1735279309142,1165.56924156,0.00011989,2]
[346777650,1735279309483,1165.56924156,0.00011989,2]
[346777651,1735279309789,1165.56924156,0.00011989,2]
[346777652,1735279310098,1165.56924156,0.00011989,2]
[346777653,1735279310464,1165.56924156,0.00011989,2]
[346777654,1735279310772,1165.56824156,0.00011989,2]
[346777655,1735279314974,1256.0,0.00012321,2]
[346777656,1735279315078,2065.12,0.00011973,2]
[346777657,1735279315885,2065.12,0.00012247,2]
[346777658,1735279316483,2065.12,0.00012521,2]
[346777659,1735279317499,2065.12,0.00012795,2]
[346777660,1735279320854,500.0,0.00011973,2]
[346777661,1735279320973,922.0,0.00012321,2]
[346777662,1735279322259,500.0,0.00012247,2]
[346777663,1735279322839,500.0,0.00012521,2]
[346777664,1735279323764,500.0,0.00012795,2]
[346777665,1735279323934,256.71,0.00012446,2]
[346777666,1735279327330,3772.0,0.00012321,2]
[346777667,1735279333064,819.0,0.00012321,2]
[346777668,1735279338914,1486.24,0.00011973,2]
[346777669,1735279339537,1486.24,0.00012247,2]
[346777670,1735279339918,1486.24,0.00012521,2]
[346777671,1735279340781,1486.24,0.00012795,2]
[346777672,1735279342847,455.605,0.0001242,2]
[346777673,1735279344549,3685.0,0.00012321,2]
[346777674,1735279351088,536.0,0.00012321,2]
[346777675,1735279362397,500.0,0.00011973,2]
[346777676,1735279363033,500.0,0.00012247,2]
[346777677,1735279363678,500.0,0.00012521,2]
[346777678,1735279364394,500.0,0.00012795,2]
[346777679,1735279371117,320.61106437,0.00012604,2]
[346777680,1735279384025,1147.66,0.00011973,2]
[346777681,1735279384604,1147.66,0.00012247,2]
[346777682,1735279385628,1147.66,0.00012521,2]
[346777683,1735279386835,1000.0,0.00011973,2]
[346777684,1735279387086,1147.66,0.00012795,2]
[346777685,1735279387666,1000.0,0.00012247,2]
[346777686,1735279388508,1000.0,0.00012521,2]
[346777687,1735279389314,1000.0,0.00012795,2]
[346777688,1735279393114,250.0,0.00012445,2]
[346777689,1735279411392,676.56,0.00011973,2]
[346777690,1735279412213,676.56,0.00012247,2]
[346777691,1735279413018,676.56,0.00012521,2]
[346777692,1735279413718,676.56,0.00012795,2]
[346777693,1735279418746,738.67,0.00011973,2]
[346777694,1735279419392,738.67,0.00012247,2]
[346777695,1735279420084,738.67,0.00012521,2]
[346777696,1735279420884,738.67,0.00012795,2]
[346777697,1735279423320,904.06580615,0.00012,3]
[346777698,1735279435757,247086.2707671,0.00012966,2]
[346777729,1735279838476,-634.57,0.00010195,2]
[346777738,1735279838931,-500.0,0.00011973,2]
[346777739,1735279838964,-15.4729755,0.00011973,2]
[346777740,1735279838993,-984.5270245,0.00011973,2]
[346777741,1735279839003,-1022.67,0.00011973,2]
[346777742,1735279839012,-563.8,0.00011973,2]
[346777743,1735279839022,-1850.03,0.00011973,2]
[346777744,1735279839032,-1411.34,0.00011973,2]
[346777745,1735279839041,-152.43,0.00012051,2]
[346777746,1735279839051,-152.43,0.00012059,2]
[346777747,1735279839061,-152.43,0.00012066,2]
[346777748,1735279839071,-495.5,0.00012069,2]
[346777749,1735279839081,-152.43,0.00012074,2]
[346777750,1735279839091,-23900.0,0.00012076,2]
[346777751,1735279839101,-152.43,0.00012081,2]
[346777752,1735279839111,-152.43,0.00012089,2]
[346777753,1735279839120,-152.43,0.00012096,2]
[346777754,1735279839132,-152.43,0.00012104,2]
[346777755,1735279839142,-152.43,0.00012111,2]
[346777756,1735279839151,-500.0,0.00012247,2]
[346777757,1735279839162,-1000.0,0.00012247,2]
[346777758,1735279839172,-1022.67,0.00012247,2]
[346777759,1735279839181,-563.8,0.00012247,2]
[346777760,1735279839191,-1850.03,0.00012247,2]
[346777761,1735279839200,-1411.34,0.00012247,2]
[346777762,1735279839210,-1000.0,0.00012295,2]
[346777763,1735279839221,-877.684,0.00012321,2]
[346777764,1735279839232,-150.0,0.00012321,2]
[346777765,1735279839242,-3889.0,0.00012321,2]
[346777766,1735279839252,-634.57,0.00012459,2]
[346777767,1735279839261,-500.0,0.00012521,2]
[346777768,1735279839271,-1000.0,0.00012521,2]
[346777769,1735279839280,-1022.67,0.00012521,2]
[346777770,1735279839290,-563.8,0.00012521,2]
[346777771,1735279839300,-1850.03,0.00012521,2]
[346777772,1735279839309,-1411.34,0.00012521,2]
[346777773,1735279839319,-500.0,0.00012795,2]
[346777774,1735279839327,-1000.0,0.00012795,2]
[346777775,1735279839337,-1022.67,0.00012795,2]
[346777776,1735279839346,-563.8,0.00012795,2]
[346777777,1735279839356,-1850.03,0.00012795,2]
[346777778,1735279839366,-1411.34,0.00012795,2]
[346777779,1735279839375,-150.0,0.00012878,2]
[346777780,1735279839386,-4288.34508394,0.00012935,2]
[346777781,1735279839397,-7206.44620997,0.00012966,2]
[346777783,1735279840201,-500.0,0.00012966,2]
[346777784,1735279840262,-671.11125443,0.00012966,2]
[346777785,1735279840323,-355.72425126,0.00012966,2]
[346777786,1735279840337,-4847.37782646,0.00012966,2]
[346777787,1735279840346,-3638.80872839,0.00012966,2]
[346777788,1735279840358,-10968.87784998,0.00012966,2]
[346777789,1735279840391,-395.92311807,0.00012966,2]
[346777790,1735279840402,-275.7953576,0.00012966,2]
[346777791,1735279840516,-941.68,0.00012966,2]
[346777792,1735279840573,-2009.74087537,0.00012966,2]
[346777793,1735279840585,-6979.6,0.00012966,2]
[346777797,1735279843221,-959.57670344,0.00012966,2]
[346777798,1735279843233,-12538.32830649,0.00012966,2]
[346777799,1735279843497,-9444.55953,0.00012966,2]
[346777824,1735279914290,5562.0,0.000125,5]
[346777826,1735280418070,-621.55,9.931e-05,2]
[346777827,1735280724419,210.0,0.00017,60]
[346777853,1735281032357,-292.63,0.00010137,2]
[346777855,1735281032368,-250.0,0.00011042,2]
[346777857,1735281032380,-440.35,0.00011075,2]
[346777860,1735281032523,-1559.65,0.00011075,2]
[346777861,1735281032534,-250.0,0.00011079,2]
[346777862,1735281032545,-477.11,0.00011087,2]
[346777863,1735281032556,-1717.8137547,0.00011359,2]
[346777864,1735281032570,-22182.1862453,0.00011359,2]
[346777865,1735281032581,-418.35,0.00011378,2]
[346777866,1735281032592,-287.37,0.00011386,2]
[346777867,1735281032603,-2751.0,0.00011507,2]
[346777868,1735281032614,-159.05,0.0001172,2]
[346777869,1735281032625,-159.05,0.00011724,2]
[346777870,1735281032635,-159.05,0.00011729,2]
[346777871,1735281032647,-159.05,0.00011733,2]
[346777872,1735281032657,-159.05,0.00011737,2]
[346777873,1735281032668,-159.05,0.00011741,2]
[346777874,1735281032679,-159.05,0.00011745,2]
[346777875,1735281032690,-159.05,0.0001175,2]
[346777876,1735281032701,-159.05,0.00011754,2]
[346777877,1735281032713,-159.05,0.00011758,2]
[346777878,1735281032723,-159.05,0.00011762,2]
[346777879,1735281032734,-159.05,0.00011766,2]
[346777880,1735281032745,-159.05,0.00011771,2]
[346777881,1735281032757,-250.0,0.00011771,2]
[346777882,1735281032768,-159.05,0.00011775,2]
[346777883,1735281032779,-159.05,0.00011779,2]
[346777884,1735281032790,-200.0,0.00011809,2]
[346777885,1735281032801,-1000.0,0.00011843,2]
[346777886,1735281032812,-150.0,0.0001188,2]
[346777887,1735281032823,-277.6,0.00011919,2]
[346777888,1735281032835,-1500.0,0.00011953,2]
[346777889,1735281032846,-4405.54,0.00012068,2]
[346777890,1735281032857,-621.55,0.00012194,2]
[346777891,1735281032869,-3628.35,0.00012242,2]
[346777892,1735281032879,-565.0,0.00012321,2]
[346777893,1735281032890,-150.0,0.00012321,2]
[346777894,1735281032901,-633.0,0.00012321,2]
[346777895,1735281032911,-1900.0,0.00012321,2]
[346777896,1735281032922,-3772.0,0.00012321,2]
[346777897,1735281032934,-922.0,0.00012321,2]
[346777898,1735281032945,-819.0,0.00012321,2]
[346777899,1735281032956,-1256.0,0.00012321,2]
[346777900,1735281032967,-3685.0,0.00012321,2]
[346777901,1735281032980,-536.0,0.00012321,2]
[346777902,1735281032992,-2012.0,0.00012321,2]
[346777903,1735281033002,-635.0,0.00012321,2]
[346777904,1735281033013,-150.0,0.00012321,2]
[346777905,1735281033024,-1266.0,0.00012321,2]